{"text_format":"2","workbook":"xlsx","n_sheets":1,"sheets":["Listas de itens"],"not_rendered":{"charts":0,"images":1,"macros":0,"external_links":0,"defined_names":1,"comments":0,"pivot_tables":0},"unopened":[],"bounds":{"document_bytes":16777216,"sheet_cells":100000,"run_cost":"one","rows_first":2000,"rows_last":500,"rows_between":2000,"halvings":0,"cell_chars":16384,"cell_head_chars":4096},"cells_cut":0,"cells_raw":0,"read":"whole","date_system":"1900"}

{"sheet":"Listas de itens","index":0,"n_rows":121,"n_cols":16,"rows_kept":121,"cut":false,"hidden":false,"merged":[[2,0,2,3],[69,2,71,2],[75,2,79,2],[85,2,87,2],[40,2,41,2],[43,2,45,2],[5,0,13,2],[47,2,48,2],[56,2,62,2],[64,2,67,2],[29,2,34,2],[36,2,38,2],[17,0,25,2],[99,2,102,2],[104,2,106,2],[114,0,120,2],[28,1,28,2],[89,2,90,2],[92,2,93,2]]}
[]
[]
["Mês",null,null,null,"Janeiro","Fevereiro","Março","Abril","Maio","Junho","Julho","Agosto","Setembro","Outubro","Novembro","Dezembro"]
[]
[{"$nulls":4},"Valor","Valor","Valor","Valor","Valor","Valor","Valor","Valor","Valor","Valor","Valor","Valor"]
["Receitas",null,null,"Salário"]
[null,null,null,"Aluguel"]
[null,null,null,"Pensão"]
[null,null,null,"Horas extras"]
[null,null,null,"13º salário"]
[null,null,null,"Férias"]
[null,null,null,"Outros"]
[]
[null,null,null,"Total",{"$f":"SUM(E6:E12)","v":0},0,0,0,0,0,0,0,0,0,0,0]
[]
["Investimentos"]
[]
["Investimentos\nInsira aqui o montante mensal que\nvocê destinará aos seus investimentos",null,null,"Ações"]
[null,null,null,"Tesouro Direto"]
[null,null,null,"Renda fixa"]
[null,null,null,"Previdência privada"]
[null,null,null,"Outros"]
[]
[null,null,null,"Total",{"$f":"SUM(E18:E22)","v":0},0,0,0,0,0,0,0,0,0,0,0]
[]
[null,null,null,"% sobre Receita",{"$f":"E24/E14","v":{"$error":"#DIV/0!"}},{"$f":"F24/F14","v":{"$error":"#DIV/0!"}},{"$error":"#DIV/0!"},{"$error":"#DIV/0!"},{"$error":"#DIV/0!"},{"$error":"#DIV/0!"},{"$error":"#DIV/0!"},{"$error":"#DIV/0!"},{"$error":"#DIV/0!"},{"$error":"#DIV/0!"},{"$error":"#DIV/0!"},{"$error":"#DIV/0!"}]
[]
["Despesas"]
[null,"Categoria",null,"Despesa"]
[null,"Fixas","Habitação","Aluguel"]
[null,"Aquelas que têm",null,"Condomínio"]
[null,"o mesmo montante",null,"Prestação da casa"]
[null,"mensalmente",null,"Seguro da casa"]
[null,null,null,"Diarista"]
[null,null,null,"Mensalista "]
[]
[null,null,"Transporte","Prestação do carro"]
[null,null,null,"Seguro do carro"]
[null,null,null,"Estacionamento"]
[]
[null,null,"Saúde","Seguro saúde"]
[null,null,null,"Plano de saúde"]
[]
[null,null,"Educação","Colégio"]
[null,null,null,"Faculdade"]
[null,null,null,"Curso"]
[]
[null,null,"Impostos","IPTU"]
[null,null,null,"IPVA"]
[]
[null,null,"Outros","Seguro de vida"]
[]
[null,null,"Total despesas fixas ",null,{"$f":"SUM(E30:E52)","v":0},0,0,0,0,0,0,0,0,0,0,0]
[]
[null,null,"% sobre Receita",null,{"$f":"E53/E14","v":{"$error":"#DIV/0!"}},{"$f":"F53/F14","v":{"$error":"#DIV/0!"}},{"$error":"#DIV/0!"},{"$error":"#DIV/0!"},{"$error":"#DIV/0!"},{"$error":"#DIV/0!"},{"$error":"#DIV/0!"},{"$error":"#DIV/0!"},{"$error":"#DIV/0!"},{"$error":"#DIV/0!"},{"$error":"#DIV/0!"},{"$error":"#DIV/0!"}]
[]
[null,"Variáveis","Habitação","Luz"]
[null,"Aquelas que aconte-",null,"Água"]
[null,"cem todos os meses,",null,"Telefone"]
[null,"mas podemos tentar",null,"Telefone Celular"]
[null,"reduzir",null,"Gás"]
[null,null,null,"Mensalidade TV"]
[null,null,null,"Internet"]
[]
[null,null,"Transporte","Metrô"]
[null,null,null,"Ônibus"]
[null,null,null,"Combustível"]
[null,null,null,"Estacionamento"]
[]
[null,null,"Alimentação","Supermercado"]
[null,null,null,"Feira"]
[null,null,null,"Padaria"]
[]
[null,null,"Saúde","Medicamentos"]
[]
[null,null,"Cuidados pessoais","Cabeleireiro"]
[null,null,null,"Manicure"]
[null,null,null,"Esteticista"]
[null,null,null,"Academia"]
[null,null,null,"Clube"]
[]
[null,null,"Total despesas variáveis",null,{"$f":"SUM(E57:E80)","v":0},{"$f":"SUM(F57:F80)","v":0},0,0,0,0,0,0,0,0,0,0]
[]
[null,null,"% sobre Receita",null,{"$f":"E82/E14","v":{"$error":"#DIV/0!"}},{"$f":"F82/F14","v":{"$error":"#DIV/0!"}},{"$error":"#DIV/0!"},{"$error":"#DIV/0!"},{"$error":"#DIV/0!"},{"$error":"#DIV/0!"},{"$error":"#DIV/0!"},{"$error":"#DIV/0!"},{"$error":"#DIV/0!"},{"$error":"#DIV/0!"},{"$error":"#DIV/0!"},{"$error":"#DIV/0!"}]
[]
[null,"Extras","Saúde","Médico"]
[null,"São as despesas extra-",null,"Dentista"]
[null,"ordinárias, para as",null,"Hospital"]
[]
[null,"quais precisamos estar","Manutenção/ prevenção","Carro"]
[null,"preparados quando",null,"Casa"]
[]
[null,"acontecerem","Educação","Material escolar"]
[null,null,null,"Uniforme"]
[]
[null,null,"Total despesas extras",null,{"$f":"SUM(E86:E94)","v":0},{"$f":"SUM(F86:F94)","v":0},0,0,0,0,0,0,0,0,0,0]
[]
[null,null,"% sobre Receita",null,{"$f":"E96/E14","v":{"$error":"#DIV/0!"}},{"$f":"F96/F14","v":{"$error":"#DIV/0!"}},{"$error":"#DIV/0!"},{"$error":"#DIV/0!"},{"$error":"#DIV/0!"},{"$error":"#DIV/0!"},{"$error":"#DIV/0!"},{"$error":"#DIV/0!"},{"$error":"#DIV/0!"},{"$error":"#DIV/0!"},{"$error":"#DIV/0!"},{"$error":"#DIV/0!"}]
[]
[null,"Adicionais","Lazer","Viagens"]
[null,"Aquelas que não",null,"Cinema/teatro"]
[null,"precisam acontecer",null,"Restaurantes/bares"]
[null,"todos os meses",null,"Locadora DVD"]
[]
[null,null,"Vestuário","Roupas"]
[null,null,null,"Calçados"]
[null,null,null,"Acessórios"]
[]
[null,null,"Outros","Presentes"]
[]
[null,null,"Total despesas extras",null,{"$f":"SUM(E100:E109)","v":0},{"$f":"SUM(F100:F109)","v":0},0,0,0,0,0,0,0,0,0,0]
[]
[null,null,"% sobre Receita",null,{"$f":"E111/E14","v":{"$error":"#DIV/0!"}},{"$f":"F111/F14","v":{"$error":"#DIV/0!"}},{"$error":"#DIV/0!"},{"$error":"#DIV/0!"},{"$error":"#DIV/0!"},{"$error":"#DIV/0!"},{"$error":"#DIV/0!"},{"$error":"#DIV/0!"},{"$error":"#DIV/0!"},{"$error":"#DIV/0!"},{"$error":"#DIV/0!"},{"$error":"#DIV/0!"}]
[]
["Saldo",null,null,"Receita",{"$f":"E14","v":0},0,0,0,0,0,0,0,0,0,0,0]
[null,null,null,"Investimentos",{"$f":"E24","v":0},0,0,0,0,0,0,0,0,0,0,0]
[null,null,null,"Despesas fixas",{"$f":"E53","v":0},0,0,0,0,0,0,0,0,0,0,0]
[null,null,null,"Despesas variáveis",{"$f":"E82","v":0},0,0,0,0,0,0,0,0,0,0,0]
[null,null,null,"Despesas extras",{"$f":"E96","v":0},0,0,0,0,0,0,0,0,0,0,0]
[null,null,null,"Despesas adicionais",{"$f":"E111","v":0},{"$f":"F111","v":0},0,0,0,0,0,0,0,0,0,0]
[null,null,null,"Saldo",{"$f":"E115-(SUM(E116:E120))","v":0},{"$f":"F115-(SUM(F116:F120))","v":0},0,0,0,0,0,0,0,0,0,{"$f":"P115-(SUM(P116:P120))","v":0}]